[Event "23rd ETCC Women 2021"]
[Site "Catez"]
[Date "2021.11.21"]
[Round "9.37"]
[White "Atalik, Ekaterina"]
[Black "Unuk, Laura"]
[Result "1/2-1/2"]
[ECO "D36"]
[WhiteElo "2430"]
[BlackElo "2353"]
[Annotator "NA"]
[PlyCount "70"]
[EventDate "2021.11.08"]
[EventType "team-tourn"]
[EventCountry "SLO"]
[SourceTitle "playchess.com"]
[Source "ChessBase"]
[SourceQuality "1"]
[WhiteTeam "Turkey"]
[BlackTeam "Slovenia"]
[WhiteTeamCountry "TUR"]
[BlackTeamCountry "SLO"]
[TimeControl "40/5400+30:1800+30"]

1. d4 {[%emt 0:00:03]} d5 {[%emt 0:00:11]} 2. c4 {[%emt 0:00:13]} e6 {[%emt 0:
00:09]} 3. Nc3 {[%emt 0:00:20]} Nf6 {[%emt 0:01:13]} 4. cxd5 {[%emt 0:00:38]}
exd5 {[%emt 0:00:06]} 5. Bg5 {[%emt 0:00:25]} c6 {[%emt 0:00:12]} 6. e3 {
[%emt 0:00:15]} h6 {[%emt 0:00:31]} 7. Bh4 {[%emt 0:00:57]} Be7 {[%emt 0:00:15]
} 8. Bd3 {[%emt 0:01:02]} O-O {[%emt 0:00:24]} 9. Qc2 {[%emt 0:05:40]} Re8 {
[%emt 0:01:22]} 10. Nf3 {[%emt 0:00:45]} Ne4 {[%emt 0:09:12]} 11. Bxe7 {
[%emt 0:03:24]} Qxe7 {[%emt 0:00:21]} 12. Bxe4 {[%emt 0:03:09]} dxe4 {[%emt 0:
00:14]} 13. Nd2 {[%emt 0:00:44]} Bf5 {[%emt 0:02:17]} 14. O-O {[%emt 0:02:01]}
Nd7 {[%emt 0:01:26]} 15. Rae1 {[%emt 0:18:01]} Qe6 {[%emt 0:11:23]} 16. Qb3 {
[%emt 0:05:43]} Qg6 {[%emt 0:03:19]} 17. f3 {[%emt 0:04:28]} exf3 {[%emt 0:08:
49]} 18. Nxf3 {[%emt 0:04:44]} Be6 {[%emt 0:05:11]} 19. Qxb7 {[%emt 0:12:45]}
Rab8 {[%emt 0:02:34]} 20. Qxc6 {[%emt 0:00:51]} Rb6 {[%emt 0:09:10]} 21. Qa4 {
[%emt 0:05:15]} Rxb2 {[%emt 0:02:31]} 22. Re2 {[%emt 0:04:17]} Rxe2 {[%emt 0:
02:23]} 23. Nxe2 {[%emt 0:00:03]} Qd3 {[%emt 0:00:46]} 24. Ng3 {[%emt 0:00:37]}
Qxe3+ {[%emt 0:01:07]} 25. Kh1 {[%emt 0:00:04]} Rc8 {[%emt 0:03:22]} 26. Qxa7 {
[%emt 0:08:06]} Nf6 {[%emt 0:02:20]} 27. Qa5 {[%emt 0:04:34]} Rc2 {[%emt 0:03:
16]} 28. Qe5 {[%emt 0:06:53]} Qa3 {[%emt 0:10:00]} 29. Qb8+ {[%emt 0:04:33]}
Kh7 {[%emt 0:03:56]} 30. Qb1 {[%emt 0:01:13]} Qxa2 {[%emt 0:00:07]} 31. Qxa2 {
[%emt 0:00:05]} Rxa2 {[%emt 0:00:11]} 32. Kg1 {[%emt 0:01:50]} Nd5 {[%emt 0:07:
53]} 33. Rf2 {[%emt 0:00:42]} Ra1+ {[%emt 0:00:11]} 34. Rf1 {[%emt 0:00:06]}
Ra2 {[%emt 0:00:50]} 35. Rf2 {[%emt 0:00:05]} Ra1+ {[%emt 0:01:23]} 1/2-1/2

[Event "23rd ETCC Women 2021"]
[Site "Catez"]
[Date "2021.11.21"]
[Round "9.38"]
[White "Urh, Zala"]
[Black "Caglar, Sila"]
[Result "0-1"]
[ECO "D02"]
[WhiteElo "2332"]
[BlackElo "2250"]
[Annotator "NA"]
[PlyCount "86"]
[EventDate "2021.11.08"]
[EventType "team-tourn"]
[EventCountry "SLO"]
[SourceTitle "playchess.com"]
[Source "ChessBase"]
[SourceQuality "1"]
[WhiteTeam "Slovenia"]
[BlackTeam "Turkey"]
[WhiteTeamCountry "SLO"]
[BlackTeamCountry "TUR"]
[TimeControl "40/5400+30:1800+30"]

1. d4 {[%emt 0:00:05]} Nf6 {[%emt 0:00:08]} 2. Nf3 {[%emt 0:00:09]} e6 {
[%emt 0:00:09]} 3. Bf4 {[%emt 0:00:14]} b6 {[%emt 0:01:38]} 4. e3 {[%emt 0:00:
30]} Bb7 {[%emt 0:00:08]} 5. Nbd2 {[%emt 0:00:27]} d5 {[%emt 0:01:51]} 6. Bd3 {
[%emt 0:01:29]} Be7 {[%emt 0:00:32]} 7. Ne5 {[%emt 0:02:54]} O-O {[%emt 0:01:
50]} 8. O-O {[%emt 0:00:32]} c5 {[%emt 0:01:47]} 9. c3 {[%emt 0:00:25]} Nc6 {
[%emt 0:02:18]} 10. Bg3 {[%emt 0:07:36]} Nxe5 {[%emt 0:05:51]} 11. dxe5 {
[%emt 0:09:47]} Nd7 {[%emt 0:01:01]} 12. Qh5 {[%emt 0:01:47]} g6 {[%emt 0:00:
32]} 13. Qe2 {[%emt 0:00:42]} f6 {[%emt 0:05:34]} 14. exf6 {[%emt 0:04:32]}
Bxf6 {[%emt 0:00:14]} 15. e4 {[%emt 0:03:58]} Qe7 {[%emt 0:02:23]} 16. Rae1 {
[%emt 0:04:03]} Rae8 {[%emt 0:02:08]} 17. Bb5 {[%emt 0:08:02]} Rf7 {[%emt 0:04:
24]} 18. e5 {[%emt 0:13:33]} Bg7 {[%emt 0:00:30]} 19. h4 {[%emt 0:01:58]} Ref8
{[%emt 0:02:46]} 20. Nf3 {[%emt 0:02:11]} Bh6 {[%emt 0:19:49]} 21. h5 {[%emt 0:
04:12]} Bf4 {[%emt 0:21:07]} 22. hxg6 {[%emt 0:12:06]} hxg6 {[%emt 0:00:01]}
23. Bd3 {[%emt 0:00:57]} g5 {[%emt 0:01:26]} 24. Bg6 {[%emt 0:06:18]} Rg7 {
[%emt 0:00:05]} 25. Bc2 {[%emt 0:00:03]} Kf7 {[%emt 0:05:42]} 26. Nh4 {[%emt 0:
04:15]} Rh8 {[%emt 0:01:49]} 27. Qf3 {[%emt 0:05:56]} gxh4 {[%emt 0:02:54]} 28.
Bxf4 {[%emt 0:00:35]} Ke8 {[%emt 0:00:10]} 29. Kh2 {[%emt 0:01:56]} Nf8 {
[%emt 0:03:57]} 30. Rg1 {[%emt 0:02:21]} Kd8 {[%emt 0:02:09]} 31. Bc1 {[%emt 0:
01:13]} Nd7 {[%emt 0:05:12]} 32. Re2 {[%emt 0:00:38]} Ba6 {[%emt 0:00:42]} 33.
Ree1 {[%emt 0:00:12]} Kc7 {[%emt 0:01:14]} 34. Qf4 {[%emt 0:00:58]} Rf8 {
[%emt 0:01:37]} 35. Qa4 {[%emt 0:00:41]} Bb7 {[%emt 0:00:09]} 36. Re2 {[%emt 0:
00:09]} Rfg8 {[%emt 0:02:11]} 37. b4 {[%emt 0:00:45]} Rg4 {[%emt 0:01:50]} 38.
f3 {[%emt 0:00:38]} Rc4 {[%emt 0:00:23]} 39. Qb3 {[%emt 0:00:31]} Qg7 {[%emt 0:
00:29]} 40. bxc5 {[%emt 0:00:40]} Qg3+ {[%emt 0:00:07]} 41. Kh1 {[%emt 0:30:01]
} h3 {[%emt 0:31:09]} 42. cxb6+ {[%emt 0:00:00]} axb6 {[%emt 0:00:00]} 43. f4 {
[%emt 0:00:00]} Rh8 {[%emt 0:00:00]} 0-1

[Event "23rd ETCC Women 2021"]
[Site "Catez"]
[Date "2021.11.21"]
[Round "9.39"]
[White "Aydin, Gulenay"]
[Black "Janzelj, Lara"]
[Result "1/2-1/2"]
[ECO "C48"]
[WhiteElo "2114"]
[BlackElo "2150"]
[Annotator "NA"]
[PlyCount "83"]
[EventDate "2021.11.08"]
[EventType "team-tourn"]
[EventCountry "SLO"]
[SourceTitle "playchess.com"]
[Source "ChessBase"]
[SourceQuality "1"]
[WhiteTeam "Turkey"]
[BlackTeam "Slovenia"]
[WhiteTeamCountry "TUR"]
[BlackTeamCountry "SLO"]
[TimeControl "40/5400+30:1800+30"]

1. e4 {[%emt 0:00:20]} e5 {[%emt 0:00:11]} 2. Nf3 {[%emt 0:00:09]} Nc6 {
[%emt 0:00:05]} 3. Nc3 {[%emt 0:00:09]} Nf6 {[%emt 0:00:09]} 4. Bb5 {[%emt 0:
00:11]} Bd6 {[%emt 0:00:19]} 5. d3 {[%emt 0:00:19]} h6 {[%emt 0:00:08]} 6. a3 {
[%emt 0:00:16]} O-O {[%emt 0:01:42]} 7. g4 {[%emt 0:01:09]} Nh7 {[%emt 0:00:10]
} 8. Rg1 {[%emt 0:11:03]} Bc5 {[%emt 0:12:29]} 9. Bc4 {[%emt 0:22:49]} Nd4 {
[%emt 0:05:20]} 10. Be3 {[%emt 0:18:44]} c6 {[%emt 0:09:17]} 11. g5 {[%emt 0:
17:59]} Nxf3+ {[%emt 0:03:25]} 12. Qxf3 {[%emt 0:00:07]} Nxg5 {[%emt 0:01:31]}
13. Qg3 {[%emt 0:03:57]} Bxe3 {[%emt 0:04:08]} 14. fxe3 {[%emt 0:00:15]} Qf6 {
[%emt 0:04:20]} 15. O-O-O {[%emt 0:01:39]} d6 {[%emt 0:03:45]} 16. Rdf1 {
[%emt 0:02:14]} Qe7 {[%emt 0:00:14]} 17. h4 {[%emt 0:01:48]} Ne6 {[%emt 0:00:
23]} 18. d4 {[%emt 0:03:16]} exd4 {[%emt 0:03:29]} 19. exd4 {[%emt 0:02:38]} g6
{[%emt 0:08:26]} 20. d5 {[%emt 0:01:40]} Nc5 {[%emt 0:04:48]} 21. dxc6 {
[%emt 0:02:14]} Kh8 {[%emt 0:02:38]} 22. Qf4 {[%emt 0:04:03]} Kg7 {[%emt 0:01:
14]} 23. Nd5 {[%emt 0:02:13]} Qxe4 {[%emt 0:05:28]} 24. Rxg6+ {[%emt 0:01:42]}
Qxg6 {[%emt 0:00:22]} 25. Qd4+ {[%emt 0:00:01]} Kh7 {[%emt 0:05:16]} 26. Nf6+ {
[%emt 0:00:13]} Kh8 {[%emt 0:00:11]} 27. Nd7+ {[%emt 0:01:10]} Qg7 {[%emt 0:00:
21]} 28. Qxg7+ {[%emt 0:01:05]} Kxg7 {[%emt 0:00:01]} 29. Rg1+ {[%emt 0:00:37]}
Kh8 {[%emt 0:00:04]} 30. Nxf8 {[%emt 0:00:14]} Bh3 {[%emt 0:04:58]} 31. Nd7 {
[%emt 0:00:24]} Nxd7 {[%emt 0:05:26]} 32. cxd7 {[%emt 0:00:03]} Bxd7 {[%emt 0:
00:06]} 33. Bxf7 {[%emt 0:00:19]} Bf5 {[%emt 0:02:28]} 34. Bd5 {[%emt 0:00:54]}
Rc8 {[%emt 0:00:14]} 35. c3 {[%emt 0:00:51]} Kh7 {[%emt 0:05:36]} 36. Bxb7 {
[%emt 0:00:59]} Rc4 {[%emt 0:00:06]} 37. Rd1 {[%emt 0:00:41]} Rxh4 {[%emt 0:00:
19]} 38. Rxd6 {[%emt 0:00:06]} Rf4 {[%emt 0:00:36]} 39. Bg2 {[%emt 0:00:52]} h5
{[%emt 0:00:50]} 40. Rd4 {[%emt 0:00:24]} Rf2 {[%emt 0:02:31]} 41. Rd2 {
[%emt 0:30:01]} Rf4 {[%emt 0:30:12]} 42. Rd4 {[%emt 0:00:00]} 1/2-1/2

[Event "23rd ETCC Women 2021"]
[Site "Catez"]
[Date "2021.11.21"]
[Round "9.40"]
[White "Krivec, Jana"]
[Black "Onur, Cigdem"]
[Result "1-0"]
[ECO "B21"]
[WhiteElo "2227"]
[BlackElo "2015"]
[Annotator "NA"]
[PlyCount "51"]
[EventDate "2021.11.08"]
[EventType "team-tourn"]
[EventCountry "SLO"]
[SourceTitle "playchess.com"]
[Source "ChessBase"]
[SourceQuality "1"]
[WhiteTeam "Slovenia"]
[BlackTeam "Turkey"]
[WhiteTeamCountry "SLO"]
[BlackTeamCountry "TUR"]
[TimeControl "40/5400+30:1800+30"]

1. e4 {[%emt 0:00:02]} c5 {[%emt 0:00:02]} 2. f4 {[%emt 0:00:03]} d5 {[%emt 0:
00:03]} 3. exd5 {[%emt 0:00:41]} Qxd5 {[%emt 0:00:58]} 4. Nc3 {[%emt 0:00:08]}
Qd8 {[%emt 0:00:14]} 5. Nf3 {[%emt 0:02:45]} Nc6 {[%emt 0:17:38]} 6. Bb5 {
[%emt 0:02:57]} Bd7 {[%emt 0:01:34]} 7. Bxc6 {[%emt 0:06:15]} Bxc6 {[%emt 0:00:
59]} 8. Qe2 {[%emt 0:01:08]} Nh6 {[%emt 0:14:58]} 9. Ne5 {[%emt 0:02:58]} Rc8 {
[%emt 0:14:14]} 10. Nb5 {[%emt 0:11:12]} f6 {[%emt 0:11:06]} 11. Nxc6 {[%emt 0:
01:43]} Rxc6 {[%emt 0:10:14]} 12. Nxa7 {[%emt 0:03:27]} Rb6 {[%emt 0:00:07]}
13. a4 {[%emt 0:11:26]} Qb8 {[%emt 0:06:16]} 14. Nb5 {[%emt 0:00:58]} Qxf4 {
[%emt 0:01:34]} 15. d4 {[%emt 0:00:38]} Qh4+ {[%emt 0:09:29]} 16. g3 {[%emt 0:
00:49]} Qh3 {[%emt 0:01:46]} 17. Bxh6 {[%emt 0:01:55]} gxh6 {[%emt 0:04:41]}
18. a5 {[%emt 0:05:38]} Rc6 {[%emt 0:01:44]} 19. d5 {[%emt 0:00:14]} Ra6 {
[%emt 0:01:47]} 20. Nc7+ {[%emt 0:00:18]} Kd8 {[%emt 0:00:27]} 21. Nxa6 {
[%emt 0:00:11]} bxa6 {[%emt 0:00:08]} 22. Qxa6 {[%emt 0:02:56]} Qg2 {[%emt 0:
00:50]} 23. O-O-O {[%emt 0:00:26]} Rg8 {[%emt 0:00:35]} 24. Qa8+ {[%emt 0:00:
57]} Kd7 {[%emt 0:00:08]} 25. Qc6+ {[%emt 0:00:12]} Kd8 {[%emt 0:00:03]} 26. a6
{[%emt 0:00:24]} 1-0

[Event "23rd ETCC Women 2021"]
[Site "Catez"]
[Date "2021.11.21"]
[Round "9.41"]
[White "Novkovic, Julia"]
[Black "Cramling, Pia"]
[Result "0-1"]
[ECO "B27"]
[WhiteElo "2082"]
[BlackElo "2457"]
[Annotator "ChessBase"]
[PlyCount "80"]
[EventDate "2021.11.08"]
[EventType "team-tourn"]
[EventCountry "SLO"]
[SourceTitle "playchess.com"]
[Source "ChessBase"]
[SourceQuality "1"]
[WhiteTeam "Austria"]
[BlackTeam "Sweden"]
[WhiteTeamCountry "AUT"]
[BlackTeamCountry "SWE"]
[TimeControl "40/5400+30:1800+30"]

1. e4 {[%emt 0:09:54]} c5 {[%emt 0:24:47]} 2. Nf3 {[%emt 0:00:30]} Nc6 {
[%emt 0:00:30]} 3. Bb5 {[%emt 0:00:30]} Nf6 {[%emt 0:00:30]} 4. e5 {[%emt 0:00:
30]} Nd5 {[%emt 0:00:30]} 5. O-O {[%emt 0:00:30]} g6 {[%emt 0:00:30]} 6. Bxc6 {
[%emt 0:00:30]} bxc6 {[%emt 0:00:30]} 7. c4 {[%emt 0:00:30]} Nc7 {[%emt 0:00:
30]} 8. d4 {[%emt 0:00:30]} cxd4 {[%emt 0:00:30]} 9. Qxd4 {[%emt 0:00:30]} Bg7
{[%emt 0:00:30]} 10. Qh4 {[%emt 0:00:30]} h6 {[%emt 0:00:30]} 11. Nc3 {[%emt 0:
00:30]} Ne6 {[%emt 0:00:30]} 12. Re1 {[%emt 0:00:30]} Rb8 {[%emt 0:00:30]} 13.
b3 {[%emt 0:00:30]} d6 {[%emt 0:00:30]} 14. Bb2 {[%emt 0:00:30]} O-O {[%emt 0:
00:30]} 15. Rad1 {[%emt 0:00:30]} Qc7 {[%emt 0:00:30]} 16. Na4 {[%emt 0:00:30]}
d5 {[%emt 0:00:30]} 17. cxd5 {[%emt 0:00:30]} cxd5 {[%emt 0:00:30]} 18. Rxd5 {
[%emt 0:00:30]} g5 {[%emt 0:00:30]} 19. Qc4 {[%emt 0:00:30]} Qxc4 {[%emt 0:00:
30]} 20. bxc4 {[%emt 0:00:30]} Rb4 {[%emt 0:00:30]} 21. Ra5 {[%emt 0:00:30]}
Bd7 {[%emt 0:00:30]} 22. Nc5 {[%emt 0:00:30]} Nxc5 {[%emt 0:00:30]} 23. Ba3 {
[%emt 0:00:30]} Ra4 {[%emt 0:00:30]} 24. Rxa4 {[%emt 0:00:30]} Nxa4 {[%emt 0:
00:30]} 25. Bxe7 {[%emt 0:00:30]} Rc8 {[%emt 0:00:30]} 26. Rc1 {[%emt 0:00:30]}
Nc5 {[%emt 0:00:30]} 27. Rd1 {[%emt 0:00:30]} Be6 {[%emt 0:00:30]} 28. h3 {
[%emt 0:00:30]} Bxc4 {[%emt 0:00:30]} 29. h4 {[%emt 0:00:30]} g4 {[%emt 0:00:
30]} 30. Nd2 {[%emt 0:00:30]} Be6 {[%emt 0:00:30]} 31. f4 {[%emt 0:00:30]} Na4
{[%emt 0:00:30]} 32. Nf1 {[%emt 0:00:30]} Nc3 {[%emt 0:00:30]} 33. Rd2 {
[%emt 0:00:30]} Nd5 {[%emt 0:00:30]} 34. f5 {[%emt 0:00:30]} Nxe7 {[%emt 0:00:
30]} 35. fxe6 {[%emt 0:00:30]} fxe6 {[%emt 0:00:30]} 36. Rd7 {[%emt 0:00:30]}
Nf5 {[%emt 0:00:30]} 37. Rxa7 {[%emt 0:00:30]} Bxe5 {[%emt 0:00:30]} 38. Ra5 {
[%emt 0:00:30]} Bd4+ {[%emt 0:00:30]} 39. Kh2 {[%emt 0:00:30]} Rc1 {[%emt 0:00:
30]} 40. Ra8+ {[%emt 0:00:30]} Kf7 {[%emt 0:00:30]} 0-1

[Event "23rd ETCC Women 2021"]
[Site "Catez"]
[Date "2021.11.21"]
[Round "9.42"]
[White "Agrest, Inna"]
[Black "Teuschler, Barbara"]
[Result "1-0"]
[ECO "B45"]
[WhiteElo "2258"]
[BlackElo "2115"]
[Annotator "NA"]
[PlyCount "61"]
[EventDate "2021.11.08"]
[EventType "team-tourn"]
[EventCountry "SLO"]
[SourceTitle "playchess.com"]
[Source "ChessBase"]
[SourceQuality "1"]
[WhiteTeam "Sweden"]
[BlackTeam "Austria"]
[WhiteTeamCountry "SWE"]
[BlackTeamCountry "AUT"]
[TimeControl "40/5400+30:1800+30"]

1. e4 {[%emt 0:00:03]} c5 {[%emt 0:00:03]} 2. Nf3 {[%emt 0:00:06]} e6 {[%emt 0:
00:06]} 3. d4 {[%emt 0:00:09]} cxd4 {[%emt 0:00:03]} 4. Nxd4 {[%emt 0:00:04]}
Nf6 {[%emt 0:00:10]} 5. Nc3 {[%emt 0:00:08]} Nc6 {[%emt 0:00:03]} 6. Be2 {
[%emt 0:02:19]} Bb4 {[%emt 0:00:20]} 7. O-O {[%emt 0:00:27]} Bxc3 {[%emt 0:00:
09]} 8. bxc3 {[%emt 0:00:09]} Nxe4 {[%emt 0:00:02]} 9. Nxc6 {[%emt 0:01:06]}
dxc6 {[%emt 0:00:23]} 10. Bd3 {[%emt 0:00:32]} Nc5 {[%emt 0:29:42]} 11. Qg4 {
[%emt 0:01:49]} Qf6 {[%emt 0:05:22]} 12. Bg5 {[%emt 0:12:34]} Qxc3 {[%emt 0:00:
20]} 13. Rad1 {[%emt 0:00:47]} e5 {[%emt 0:23:28]} 14. Qg3 {[%emt 0:11:56]} Ne6
{[%emt 0:01:09]} 15. Rfe1 {[%emt 0:04:50]} Nxg5 {[%emt 0:05:05]} 16. Qxg5 {
[%emt 0:11:49]} O-O {[%emt 0:01:48]} 17. Re3 {[%emt 0:01:32]} e4 {[%emt 0:05:
57]} 18. Bxe4 {[%emt 0:00:32]} Qb2 {[%emt 0:04:51]} 19. Rg3 {[%emt 0:13:52]} f5
{[%emt 0:00:40]} 20. c3 {[%emt 0:03:35]} g6 {[%emt 0:00:45]} 21. Bd3 {[%emt 0:
04:01]} Qxc3 {[%emt 0:02:10]} 22. h4 {[%emt 0:01:48]} Qf6 {[%emt 0:01:27]} 23.
Bc4+ {[%emt 0:02:40]} Kg7 {[%emt 0:00:23]} 24. Qf4 {[%emt 0:00:46]} Be6 {
[%emt 0:02:07]} 25. Bxe6 {[%emt 0:03:04]} Qxe6 {[%emt 0:00:06]} 26. Re3 {
[%emt 0:01:26]} Qf6 {[%emt 0:01:27]} 27. Rd6 {[%emt 0:02:24]} Qa1+ {[%emt 0:01:
04]} 28. Kh2 {[%emt 0:00:04]} Rf7 {[%emt 0:01:42]} 29. h5 {[%emt 0:00:35]} Raf8
{[%emt 0:00:27]} 30. hxg6 {[%emt 0:01:25]} hxg6 {[%emt 0:01:30]} 31. Rxg6+ {
[%emt 0:02:35]} 1-0

[Event "23rd ETCC Women 2021"]
[Site "Catez"]
[Date "2021.11.21"]
[Round "9.43"]
[White "Froewis, Annika"]
[Black "Zaritovskaja, Margarita"]
[Result "1/2-1/2"]
[ECO "B81"]
[WhiteElo "2079"]
[BlackElo "2040"]
[Annotator "NA"]
[PlyCount "83"]
[EventDate "2021.11.08"]
[EventType "team-tourn"]
[EventCountry "SLO"]
[SourceTitle "playchess.com"]
[Source "ChessBase"]
[SourceQuality "1"]
[WhiteTeam "Austria"]
[BlackTeam "Sweden"]
[WhiteTeamCountry "AUT"]
[BlackTeamCountry "SWE"]
[TimeControl "40/5400+30:1800+30"]

1. e4 {[%emt 0:00:03]} c5 {[%emt 0:00:05]} 2. Nf3 {[%emt 0:00:05]} d6 {[%emt 0:
00:06]} 3. d4 {[%emt 0:00:05]} cxd4 {[%emt 0:00:05]} 4. Nxd4 {[%emt 0:00:05]}
Nf6 {[%emt 0:00:12]} 5. Nc3 {[%emt 0:00:07]} a6 {[%emt 0:00:06]} 6. h3 {
[%emt 0:00:16]} e6 {[%emt 0:00:41]} 7. g4 {[%emt 0:01:04]} b5 {[%emt 0:03:06]}
8. Bg2 {[%emt 0:05:29]} Bb7 {[%emt 0:01:08]} 9. a3 {[%emt 0:05:05]} Qc7 {
[%emt 0:04:17]} 10. g5 {[%emt 0:06:44]} Nfd7 {[%emt 0:03:59]} 11. f4 {[%emt 0:
04:28]} Nc6 {[%emt 0:08:58]} 12. Nxc6 {[%emt 0:07:04]} Qxc6 {[%emt 0:03:16]}
13. Qe2 {[%emt 0:12:19]} O-O-O {[%emt 0:08:34]} 14. O-O {[%emt 0:04:08]} Nb6 {
[%emt 0:04:03]} 15. f5 {[%emt 0:03:45]} d5 {[%emt 0:07:10]} 16. fxe6 {[%emt 0:
05:27]} fxe6 {[%emt 0:01:53]} 17. exd5 {[%emt 0:01:29]} Bc5+ {[%emt 0:05:32]}
18. Be3 {[%emt 0:07:12]} exd5 {[%emt 0:05:48]} 19. Bxc5 {[%emt 0:01:31]} Qxc5+
{[%emt 0:00:05]} 20. Qf2 {[%emt 0:01:44]} Qxf2+ {[%emt 0:03:41]} 21. Rxf2 {
[%emt 0:00:06]} Nc4 {[%emt 0:01:58]} 22. Re1 {[%emt 0:03:36]} Rhe8 {[%emt 0:08:
41]} 23. Rxe8 {[%emt 0:12:50]} Rxe8 {[%emt 0:00:02]} 24. Rf7 {[%emt 0:00:36]}
Re1+ {[%emt 0:05:08]} 25. Kh2 {[%emt 0:01:38]} Rc1 {[%emt 0:01:04]} 26. Bxd5 {
[%emt 0:05:40]} Rxc2+ {[%emt 0:01:37]} 27. Kg1 {[%emt 0:01:28]} Bxd5 {[%emt 0:
01:11]} 28. Nxd5 {[%emt 0:00:02]} Rxb2 {[%emt 0:08:51]} 29. Rxg7 {[%emt 0:00:
25]} Ne5 {[%emt 0:01:12]} 30. Kf1 {[%emt 0:02:24]} Nf3 {[%emt 0:00:52]} 31. Nf6
{[%emt 0:04:19]} Nh2+ {[%emt 0:03:51]} 32. Ke1 {[%emt 0:00:22]} Nf3+ {[%emt 0:
00:23]} 33. Kd1 {[%emt 0:00:15]} Rh2 {[%emt 0:00:14]} 34. Nxh7 {[%emt 0:01:05]}
Rxh3 {[%emt 0:00:20]} 35. g6 {[%emt 0:00:59]} Ne5 {[%emt 0:01:03]} 36. Nf6 {
[%emt 0:01:49]} Nxg6 {[%emt 0:03:37]} 37. Rxg6 {[%emt 0:00:14]} Rxa3 {[%emt 0:
00:04]} 38. Rg7 {[%emt 0:01:43]} a5 {[%emt 0:01:14]} 39. Kc2 {[%emt 0:00:13]}
a4 {[%emt 0:02:39]} 40. Ne4 {[%emt 0:00:59]} b4 {[%emt 0:02:01]} 41. Nd6+ {
[%emt 0:05:30]} Kd8 {[%emt 0:03:02]} 42. Nb7+ {[%emt 0:04:30]} 1/2-1/2

[Event "23rd ETCC Women 2021"]
[Site "Catez"]
[Date "2021.11.21"]
[Round "9.44"]
[White "Cramling Bellon, Anna"]
[Black "Mayrhuber, Nikola"]
[Result "1-0"]
[ECO "E11"]
[WhiteElo "2035"]
[BlackElo "2091"]
[Annotator "NA"]
[PlyCount "85"]
[EventDate "2021.11.08"]
[EventType "team-tourn"]
[EventCountry "SLO"]
[SourceTitle "playchess.com"]
[Source "ChessBase"]
[SourceQuality "1"]
[WhiteTeam "Sweden"]
[BlackTeam "Austria"]
[WhiteTeamCountry "SWE"]
[BlackTeamCountry "AUT"]
[TimeControl "40/5400+30:1800+30"]

1. d4 {[%emt 0:00:05]} e6 {[%emt 0:00:08]} 2. c4 {[%emt 0:00:15]} Nf6 {[%emt 0:
00:05]} 3. Nf3 {[%emt 0:00:09]} Bb4+ {[%emt 0:01:30]} 4. Bd2 {[%emt 0:00:24]}
Qe7 {[%emt 0:02:53]} 5. a3 {[%emt 0:01:02]} Bxd2+ {[%emt 0:00:52]} 6. Qxd2 {
[%emt 0:00:13]} d6 {[%emt 0:09:57]} 7. Nc3 {[%emt 0:04:10]} O-O {[%emt 0:07:36]
} 8. e4 {[%emt 0:05:00]} e5 {[%emt 0:03:13]} 9. dxe5 {[%emt 0:06:07]} dxe5 {
[%emt 0:00:19]} 10. Qg5 {[%emt 0:00:24]} Nc6 {[%emt 0:03:34]} 11. Bd3 {[%emt 0:
09:41]} Bg4 {[%emt 0:11:26]} 12. Nd5 {[%emt 0:18:25]} Nxd5 {[%emt 0:05:01]} 13.
cxd5 {[%emt 0:05:47]} Bxf3 {[%emt 0:08:28]} 14. Qxe7 {[%emt 0:00:15]} Nxe7 {
[%emt 0:00:06]} 15. gxf3 {[%emt 0:00:06]} c6 {[%emt 0:06:04]} 16. O-O-O {
[%emt 0:07:17]} cxd5 {[%emt 0:07:39]} 17. exd5 {[%emt 0:00:21]} Rfd8 {[%emt 0:
02:06]} 18. d6 {[%emt 0:04:16]} Nc8 {[%emt 0:02:32]} 19. Rhe1 {[%emt 0:11:18]}
f6 {[%emt 0:07:39]} 20. f4 {[%emt 0:04:27]} exf4 {[%emt 0:06:01]} 21. d7 {
[%emt 0:03:05]} Nb6 {[%emt 0:04:54]} 22. Bf5 {[%emt 0:01:12]} g6 {[%emt 0:01:
39]} 23. Be6+ {[%emt 0:01:20]} Kf8 {[%emt 0:00:38]} 24. Rd4 {[%emt 0:03:27]} f5
{[%emt 0:00:42]} 25. a4 {[%emt 0:04:00]} a5 {[%emt 0:00:44]} 26. h4 {[%emt 0:
01:25]} Ra6 {[%emt 0:01:17]} 27. h5 {[%emt 0:00:20]} Na8 {[%emt 0:01:27]} 28.
Bg8 {[%emt 0:06:35]} Rc6+ {[%emt 0:01:32]} 29. Kb1 {[%emt 0:00:09]} h6 {
[%emt 0:02:40]} 30. hxg6 {[%emt 0:02:13]} Rxg6 {[%emt 0:00:27]} 31. Bh7 {
[%emt 0:00:09]} Rf6 {[%emt 0:00:38]} 32. Re5 {[%emt 0:01:50]} Nb6 {[%emt 0:00:
46]} 33. Bxf5 {[%emt 0:00:11]} Kf7 {[%emt 0:01:17]} 34. Rde4 {[%emt 0:00:53]}
Rd6 {[%emt 0:01:00]} 35. Rxf4 {[%emt 0:00:49]} Kf6 {[%emt 0:00:35]} 36. Re8 {
[%emt 0:00:34]} Kg5 {[%emt 0:00:27]} 37. Rxd8 {[%emt 0:00:15]} Kxf4 {[%emt 0:
00:09]} 38. Rf8 {[%emt 0:00:03]} Nxd7 {[%emt 0:00:51]} 39. Bxd7+ {[%emt 0:00:
11]} Ke5 {[%emt 0:00:18]} 40. Bb5 {[%emt 0:00:29]} Kd4 {[%emt 0:00:36]} 41. Rf7
{[%emt 0:30:59]} Ke5 {[%emt 0:30:39]} 42. Rxb7 {[%emt 0:00:00]} Rf6 {[%emt 0:
00:00]} 43. Be8 {[%emt 0:00:00]} 1-0

[Event "23rd ETCC Women 2021"]
[Site "Catez"]
[Date "2021.11.21"]
[Round "9.45"]
[White "Shvayger, Yuliya"]
[Black "Cvitan, Ena"]
[Result "1/2-1/2"]
[ECO "B11"]
[WhiteElo "2351"]
[BlackElo "2234"]
[Annotator "NA"]
[PlyCount "48"]
[EventDate "2021.11.08"]
[EventType "team-tourn"]
[EventCountry "SLO"]
[SourceTitle "playchess.com"]
[Source "ChessBase"]
[SourceQuality "1"]
[WhiteTeam "Israel"]
[BlackTeam "Croatia"]
[WhiteTeamCountry "ISR"]
[BlackTeamCountry "CRO"]
[TimeControl "40/5400+30:1800+30"]

1. e4 {[%emt 0:01:02]} c6 {[%emt 0:00:13]} 2. Nf3 {[%emt 0:00:09]} d5 {[%emt 0:
00:08]} 3. Nc3 {[%emt 0:00:06]} dxe4 {[%emt 0:00:24]} 4. Nxe4 {[%emt 0:00:07]}
Nf6 {[%emt 0:00:34]} 5. Qe2 {[%emt 0:00:12]} Nxe4 {[%emt 0:00:36]} 6. Qxe4 {
[%emt 0:00:03]} Nd7 {[%emt 0:00:28]} 7. d4 {[%emt 0:00:33]} Nf6 {[%emt 0:03:14]
} 8. Qd3 {[%emt 0:00:02]} g6 {[%emt 0:06:59]} 9. Be2 {[%emt 0:00:40]} Bg7 {
[%emt 0:03:08]} 10. O-O {[%emt 0:06:47]} O-O {[%emt 0:01:52]} 11. c4 {[%emt 0:
01:43]} Qc7 {[%emt 0:10:04]} 12. Bg5 {[%emt 0:05:04]} Re8 {[%emt 0:09:18]} 13.
h3 {[%emt 0:02:19]} h6 {[%emt 0:09:15]} 14. Be3 {[%emt 0:02:49]} Bf5 {[%emt 0:
06:33]} 15. Qb3 {[%emt 0:04:58]} Rad8 {[%emt 0:02:56]} 16. Rac1 {[%emt 0:00:32]
} g5 {[%emt 0:07:01]} 17. Rfd1 {[%emt 0:21:27]} e6 {[%emt 0:04:57]} 18. Bd3 {
[%emt 0:11:02]} Bxd3 {[%emt 0:04:35]} 19. Rxd3 {[%emt 0:00:09]} Qb8 {[%emt 0:
01:36]} 20. Qd1 {[%emt 0:00:41]} Ne4 {[%emt 0:02:42]} 21. Qe2 {[%emt 0:07:54]}
Nf6 {[%emt 0:00:32]} 22. Qd1 {[%emt 0:00:02]} Ne4 {[%emt 0:00:06]} 23. Qe2 {
[%emt 0:00:01]} Nf6 {[%emt 0:00:07]} 24. Qd1 {[%emt 0:00:02]} Ne4 {[%emt 0:00:
16]} 1/2-1/2